bitfinex/quotes_ETHUSD_20240717
["timestamp","ask_amount","ask_price","bid_price","bid_amount"]
[1721244303781,0.05782987,3425.4,3425.2,3.503448]
[1721244304024,0.60860034,3425.7,3425.2,3.503448]
[1721244304225,0.05775584,3425.3,3425.2,2.91953]
[1721244304379,0.60860034,3425.7,3425.2,2.91953]
[1721244304585,0.05774761,3425.6,3425.2,2.91953]
[1721244304831,0.05774761,3425.6,3425.5,5.83856]
[1721244305042,0.05774761,3425.6,3425.5,6.38856]
[1721244305241,0.05774761,3425.6,3425.5,10.247885]
[1721244305518,0.60860034,3426.4,3426.3,2.91859]
[1721244305714,0.60860034,3426.6,3426.3,2.91859]
[1721244305882,0.05773443,3426.4,3426.3,2.91859]
[1721244306078,0.60860034,3426.6,3426.3,2.91859]
[1721244306314,0.05774595,3426.4,3426.3,2.91859]
[1721244306635,0.05797463,3426.4,3426.3,2.91859]
[1721244306797,0.60860034,3426.6,3426.3,2.91859]
[1721244307129,0.05797463,3426.4,3426.3,2.91859]
[1721244307286,0.60860034,3426.6,3426.3,2.91859]
[1721244307628,0.60860034,3426.6,3425.7,5.42807]
[1721244307629,0.60860034,3426.6,3426.4,2.91847]
[1721244307786,0.05797463,3426.5,3426.4,2.91847]
[1721244308232,0.66657497,3426.5,3426.4,2.91847]
[1721244308631,0.05797463,3426.5,3426.4,2.91847]
[1721244309327,0.66657497,3426.5,3426.4,2.91847]
[1721244311424,0.66657497,3426.5,3426.4,3.502185]
[1721244311585,0.05797463,3426.5,3426.4,3.502185]
[1721244312306,0.66657497,3426.5,3426.4,3.502185]
[1721244312883,0.05797463,3426.5,3426.4,3.502185]
[1721244314402,0.05797463,3426.5,3426.4,6.420695]
[1721244316299,0.66657497,3426.5,3426.4,2.91847]
[1721244316720,0.05797463,3426.5,3426.4,2.91847]
[1721244317034,0.66657497,3426.5,3426.4,2.91847]
[1721244317395,0.05797463,3426.5,3426.4,2.91847]
[1721244318087,0.05797463,3426.5,3426.2,2.91866]
[1721244318315,0.61158315,3426.4,3426.3,2.9186]
[1721244318719,0.66927147,3426.4,3426.3,2.9186]
[1721244320104,0.66927147,3426.4,3426.3,5.8372]
[1721244320320,0.66927147,3426.4,3426.3,6.42092]
[1721244320946,0.05768832,3426.4,3426.3,6.42092]
[1721244321280,0.66927147,3426.4,3426.3,6.42092]
[1721244324170,0.05768832,3426.4,3426.3,6.42092]
[1721244324375,0.66998075,3426.4,3426.3,6.42092]
[1721244324684,0.66998075,3426.4,3426.3,11.70482]
[1721244324973,0.05768832,3426.4,3426.3,12.25482]
[1721244325135,0.05768832,3426.4,3426.3,15.17342]
[1721244325338,0.0326349,3426.9,3426.3,15.17342]
[1721244325339,0.0326349,3426.9,3426.8,8.75451]
[1721244325649,0.0326349,3426.9,3426.8,10.179961]
[1721244325949,0.0326349,3426.9,3426.8,12.552461]
[1721244326158,0.09034131,3426.9,3426.8,12.552461]
[1721244326359,0.0326349,3426.9,3426.8,12.552461]
[1721244327878,0.55782784,3427.6,3427.5,2.91757]
[1721244328035,1.21720068,3427.9,3427.5,2.91752]
[1721244328240,1.21720068,3427.9,3427.6,2.91744]
[1721244328436,1.21720068,3428.0,3427.6,2.91744]
[1721244328965,1.21720068,3427.9,3427.6,2.91744]
[1721244329146,1.21720068,3428.0,3427.6,2.91744]
[1721244329357,0.96720068,3428.0,3427.7,2.91737]
[1721244330379,1.52820331,3428.3,3427.8,2.91727]
[1721244330883,1.52820331,3428.1,3427.5,2.91751]
[1721244331047,4.44518331,3428.2,3427.6,2.91748]
[1721244331243,4.44518331,3428.2,3427.4,5.83518]
[1721244331575,4.44400643,3428.2,3427.6,2.91748]
[1721244332176,2.91698,3428.2,3427.6,2.91748]
[1721244334259,2.91707,3428.1,3427.4,2.91759]
[1721244334660,2.91707,3428.1,3427.2,2.91781]
[1721244334661,2.91728,3427.9,3427.2,2.91781]
[1721244335004,2.91728,3427.9,3427.3,2.91769]
[1721244335148,2.91728,3427.9,3427.3,2.88769]
[1721244336179,2.91728,3427.9,3427.1,2.91785]
[1721244336882,2.91734,3427.8,3427.2,2.91782]
[1721244337447,3.83273865,3427.9,3427.2,2.91782]
[1721244337646,2.91728,3427.9,3427.2,2.91782]
[1721244337863,0.6102465,3427.8,3427.2,2.91782]
[1721244338778,3.5275965,3427.8,3427.2,2.91782]
[1721244339546,0.6102465,3427.8,3427.6,2.91749]
[1721244339746,0.6102465,3428.0,3427.6,2.91749]
[1721244340180,0.6102465,3427.9,3427.6,5.8349]
[1721244340382,4.1374187,3428.3,3427.6,5.8349]
[1721244340383,0.6102465,3428.0,3427.6,3.5009]
[1721244340690,0.91545865,3428.2,3427.6,3.5009]
[1721244340691,0.6102465,3428.2,3427.8,2.9173]
[1721244341067,0.91545865,3428.3,3427.8,2.9173]
[1721244341068,0.6102465,3428.1,3427.8,2.9173]
[1721244341271,0.6102465,3428.2,3427.8,2.9173]
[1721244341672,0.6102465,3428.2,3428.0,2.91715]
[1721244342198,0.6102465,3428.3,3428.0,2.91715]
[1721244342394,0.6102465,3428.4,3427.9,2.91718]
[1721244342694,0.69854022,3428.3,3427.9,2.91718]
[1721244343012,0.69854022,3428.3,3428.0,2.91715]
[1721244343975,0.69854022,3428.3,3427.8,2.91725]
[1721244344290,0.6102465,3428.2,3427.7,2.91734]
[1721244344494,0.6102465,3428.1,3427.7,2.91734]
[1721244344666,0.6102465,3428.1,3427.7,5.83468]
[1721244344867,0.08829372,3428.0,3427.8,2.91732]
[1721244345272,0.6102465,3428.2,3427.8,2.91732]
[1721244345498,0.08829372,3427.9,3427.8,2.91732]
[1721244345699,0.6102465,3428.2,3427.8,2.91732]
[1721244345923,0.0883332,3427.9,3427.8,2.91732]
[1721244346058,0.6102465,3428.2,3427.8,2.91732]
[1721244346263,0.6102465,3428.2,3428.1,2.91706]
[1721244346498,0.1500507,3428.5,3428.2,2.91698]
[1721244346815,0.1500507,3428.5,3428.4,2.91681]
[1721244348102,0.1500507,3428.5,3427.9,0.291732]
[1721244348261,0.1500507,3428.5,3428.1,2.91703]
[1721244349502,0.1500507,3428.5,3428.4,2.91681]
[1721244349905,0.1500507,3428.5,3428.1,2.91699]
[1721244350280,0.1500507,3428.5,3428.3,2.91688]
[1721244351296,0.1500507,3428.5,3428.3,2.91683]
[1721244351684,0.1500507,3428.5,3428.4,2.91681]
[1721244352075,0.1500507,3428.5,3428.3,2.91683]
[1721244353865,0.1500507,3428.5,3428.4,2.91681]
[1721244355198,0.1500507,3428.5,3428.4,3.500174]
[1721244355930,0.1500507,3428.5,3428.4,6.416984]
[1721244357331,0.1500507,3428.5,3428.4,3.500174]
[1721244357541,0.1500507,3428.5,3428.4,2.91681]
[1721244357688,0.23854668,3428.5,3428.4,2.91681]
[1721244359543,0.1500507,3428.5,3428.4,2.91681]
[1721244359902,0.23858286,3428.5,3428.1,2.91702]
[1721244360222,0.23858286,3428.5,3427.9,2.91722]
[1721244360635,0.23858286,3428.5,3428.1,2.91704]
[1721244360975,0.23858286,3428.5,3427.9,2.91722]
[1721244361170,3.5270865,3428.4,3427.7,2.91736]
[1721244361328,2.2851,3428.2,3427.7,2.91736]
[1721244361768,0.08852888,3428.1,3427.7,2.91736]
[1721244363475,3.61584538,3428.1,3427.5,2.91755]
[1721244363774,3.61584538,3428.1,3427.3,2.91774]
[1721244363775,2.9172,3428.0,3427.3,2.91774]
[1721244363978,2.91725,3427.9,3427.2,2.91782]
[1721244364258,2.91725,3427.9,3426.8,0.875451]
[1721244364259,3.61603699,3427.8,3427.1,2.91791]
[1721244364466,0.6102465,3427.7,3427.1,2.91791]
[1721244364684,2.8899465,3427.5,3426.6,2.9183]
[1721244364872,3.5279065,3427.4,3426.6,2.9183]
[1721244365073,0.6102465,3427.3,3426.6,2.9183]
[1721244365231,0.6102465,3427.2,3426.6,2.9183]
[1721244365766,0.08835951,3427.1,3426.6,2.9183]
[1721244366568,0.08835951,3427.1,3426.6,3.560353]
[1721244366737,0.08835951,3427.1,3426.7,2.91824]
[1721244366938,0.08835951,3427.1,3426.8,2.91816]
[1721244367374,0.6102465,3427.2,3426.8,2.91816]
[1721244367973,0.08835951,3427.1,3426.8,2.91816]
[1721244368178,0.08835951,3427.1,3426.8,3.5660113]
[1721244368385,0.08835951,3427.1,3426.9,2.91806]
[1721244368755,0.6102465,3427.3,3426.9,2.91806]
[1721244368951,0.6102465,3427.5,3427.1,2.2561]
[1721244369171,0.6102465,3427.5,3427.1,5.17396]
[1721244369370,0.6102465,3427.5,3427.1,6.04793413]
[1721244370042,0.91545865,3427.6,3427.1,6.04793413]
[1721244370043,0.6102465,3427.4,3427.1,6.04793413]
[1721244370592,0.6102465,3427.4,3427.2,2.91781]
[1721244371244,0.6102465,3427.4,3427.3,5.83548]
[1721244371519,0.6102465,3427.4,3427.1,3.13007413]
[1721244371520,0.6102465,3427.8,3427.5,2.91757]
[1721244371687,0.6102465,3427.8,3427.6,3.209167]
[1721244371881,0.6102465,3427.9,3427.6,2.91741]
[1721244372514,0.6102465,3427.8,3427.6,2.91741]
[1721244372722,0.69848756,3427.8,3427.3,2.91771]
[1721244373102,0.69848756,3427.8,3427.5,2.91752]
[1721244373702,0.08824106,3427.8,3427.5,2.91752]
[1721244374216,0.69848756,3427.8,3427.5,2.91752]
[1721244374380,0.08824106,3427.8,3427.5,2.91752]
[1721244374808,0.69848756,3427.8,3427.5,2.91752]
[1721244375315,0.69848756,3427.8,3427.3,2.91771]
[1721244375529,0.6102465,3427.6,3427.1,2.91787]
[1721244375688,0.6102465,3427.3,3427.1,2.91787]
[1721244376025,0.6102465,3427.4,3427.1,2.91787]
[1721244376341,0.6102465,3427.2,3426.9,2.91801]
[1721244376490,0.6102465,3427.2,3427.0,2.91795]
[1721244376826,0.6102465,3427.3,3427.0,2.91795]
[1721244377120,0.6102465,3427.3,3426.8,3.5659513]
[1721244377322,0.6102465,3427.3,3426.9,2.918]
[1721244377323,0.08830522,3427.2,3426.9,2.918]
[1721244377536,0.6102465,3427.2,3426.7,2.91821]
[1721244377843,0.6102465,3427.0,3426.7,2.91821]
[1721244378188,0.6102465,3427.1,3426.7,2.91821]
[1721244378386,0.08827892,3426.9,3426.7,3.738063]
[1721244378610,0.6102465,3427.1,3426.7,3.738063]
[1721244378811,0.08827892,3426.8,3426.7,3.738063]
[1721244379013,0.6102465,3427.1,3426.9,2.91801]
[1721244379204,0.6102465,3427.2,3427.0,2.918]
[1721244379703,0.6102465,3427.1,3427.0,2.918]
[1721244380111,0.6102465,3427.2,3427.0,2.918]
[1721244381905,0.6102465,3427.2,3427.0,3.5835993]
[1721244382105,0.6102465,3427.2,3427.0,6.5015393]
[1721244382335,0.6102465,3427.2,3427.0,3.5835393]
[1721244382538,0.6102465,3427.2,3427.0,2.91794]
[1721244383737,0.6102465,3427.2,3427.0,5.83587]
[1721244385430,0.6102465,3427.2,3427.1,2.91791]
[1721244386437,0.6102465,3427.3,3427.1,2.91791]
[1721244386929,0.6102465,3427.3,3426.9,2.91802]
[1721244387713,0.08792688,3427.2,3426.9,2.91802]
[1721244388033,0.6102465,3427.3,3426.8,2.91813]
[1721244388235,0.08792688,3427.1,3426.8,5.83623]
[1721244388411,0.6102465,3427.2,3426.8,5.83623]
[1721244388613,0.08792688,3427.0,3426.7,2.91825]
[1721244388826,2.292,3427.1,3426.5,2.91836]
[1721244389014,0.08792688,3426.9,3426.5,2.91836]
[1721244389204,0.08792359,3427.0,3426.6,2.91829]
[1721244389527,2.9022465,3427.1,3426.7,2.91825]
[1721244389840,0.08792032,3426.9,3426.7,2.91825]
[1721244390019,2.292,3427.1,3426.7,2.91825]
[1721244390534,0.08792032,3427.0,3426.7,2.91825]
[1721244391038,0.08792032,3427.0,3426.5,2.9184]
[1721244391248,0.08792032,3427.0,3426.4,2.91847]
[1721244391541,3.00592032,3427.0,3426.4,2.91846]
[1721244392116,6.53424682,3427.0,3426.2,5.83728]
[1721244392323,2.91809,3426.9,3426.2,5.83728]
[1721244392725,2.91809,3426.9,3426.0,2.3974]
[1721244392726,3.00603599,3426.8,3425.7,2.4119]
[1721244392922,3.61628249,3426.8,3426.0,2.9188]
[1721244393125,2.91858,3426.4,3425.6,2.91916]
[1721244393324,3.5288265,3426.4,3425.6,2.91916]
[1721244393621,3.61669615,3426.3,3425.6,2.91916]
[1721244393847,0.6102465,3426.2,3425.6,2.91916]
[1721244394209,3.5288565,3426.3,3425.6,2.91916]
[1721244394450,0.08783965,3426.1,3425.6,2.91916]
[1721244394615,3.5288565,3426.3,3425.6,2.91916]
[1721244394826,0.08783965,3426.0,3425.4,2.91929]
[1721244395017,3.5289465,3426.2,3425.4,2.91929]
[1721244395215,0.08783965,3425.9,3425.4,2.91929]
[1721244395438,2.9187,3426.2,3425.4,2.91929]
[1721244395637,0.08783965,3425.8,3425.4,2.91929]
[1721244395819,2.9187,3426.2,3425.3,2.4119]
[1721244395820,2.9187,3426.2,3425.5,3.452399]
[1721244396026,0.08783965,3425.7,3425.5,2.91928]
[1721244396231,2.9187,3426.2,3425.5,2.91928]
[1721244396559,2.9187,3426.2,3425.6,2.91918]
[1721244396723,0.08783965,3426.1,3425.6,2.91918]
[1721244397066,0.08783965,3426.1,3425.5,2.91928]
[1721244397420,3.00664965,3426.1,3425.4,2.91935]
[1721244398661,2.3609,3425.9,3424.8,2.9198]
[1721244398959,2.91925,3425.6,3424.9,2.91978]
[1721244399340,0.08755808,3425.5,3425.0,2.9197]
[1721244401325,2.9196,3425.2,3423.4,6.71622525]
[1721244401541,2.91971,3425.0,3424.4,2.92021]
[1721244401762,2.9196,3425.2,3424.4,2.92021]
[1721244401763,3.0070236,3425.1,3424.4,2.92021]
[1721244401967,2.91965,3425.1,3424.4,2.92021]
[1721244402134,3.0071036,3425.0,3424.4,2.92021]
[1721244404546,0.0873736,3425.0,3424.5,2.92012]
[1721244404863,2.2937,3425.4,3424.4,3.504269]
[1721244404864,2.2937,3425.4,3424.7,2.91995]
[1721244405067,0.0872665,3424.9,3424.7,2.91995]
[1721244405264,5.21306,3425.4,3424.8,2.91987]
[1721244406402,2.9195,3425.3,3424.6,2.92002]
[1721244407286,2.9195,3425.3,3424.7,2.91996]
[1721244408014,2.4391,3425.8,3424.8,2.91987]
[1721244408171,2.91921,3425.6,3424.8,2.91987]
[1721244408590,2.91921,3425.6,3424.8,2.91979]
[1721244408793,2.91934,3425.5,3424.8,2.91979]
[1721244409608,2.4391,3425.3,3424.7,2.91994]
[1721244410178,2.4391,3425.3,3424.8,2.91979]
[1721244410385,2.91923,3425.6,3424.8,5.8396]
[1721244410891,0.08719071,3425.5,3424.8,5.8396]
[1721244411086,0.08719071,3425.5,3424.8,2.91979]
[1721244411411,0.08719071,3425.5,3425.0,2.9197]
[1721244411914,0.08719071,3425.4,3425.0,2.9197]
[1721244412119,0.08719071,3425.4,3425.0,3.56788889]
[1721244412412,5.35826,3425.7,3425.0,3.56788889]
[1721244412622,0.08719071,3425.3,3425.0,3.56788889]
[1721244412949,0.08719071,3425.2,3425.0,3.56788889]
[1721244413281,5.35826,3425.7,3425.0,3.56788889]
[1721244413601,0.08719071,3425.6,3425.0,3.56788889]
[1721244414580,0.08719071,3425.6,3425.1,2.91961]
[1721244417252,0.08719071,3425.6,3425.1,5.83917]
[1721244417413,0.08719071,3425.6,3425.1,2.91956]
[1721244418415,0.08719071,3425.6,3425.1,5.83911]
[1721244418612,0.08719071,3425.6,3425.2,2.91952]
[1721244421225,0.08719071,3425.6,3425.1,2.91955]
[1721244421457,0.08719071,3425.6,3424.9,5.83948]
[1721244421660,0.08719071,3425.6,3425.0,2.91969]
[1721244422464,0.08719071,3425.6,3425.1,2.9196]
[1721244422663,0.08719071,3425.6,3425.1,5.83917]
[1721244423233,0.08719071,3425.6,3425.2,2.91952]
[1721244424329,0.08719071,3425.6,3425.0,2.91963]
[1721244424745,0.08719071,3425.6,3425.1,2.91955]
[1721244424947,0.08719071,3425.6,3425.0,2.91964]
[1721244425272,0.08719071,3425.6,3425.1,2.91961]
[1721244425637,0.08719071,3425.6,3425.1,5.83918]
[1721244426177,0.08719071,3425.6,3425.2,2.91952]
[1721244430080,0.08719071,3425.6,3425.1,2.91957]
[1721244430242,0.69273843,3425.6,3425.1,2.91957]
[1721244431076,0.69273843,3425.6,3425.1,2.91955]
[1721244431248,0.69273843,3425.6,3425.0,1.045]
[1721244431455,3.61193843,3425.6,3425.0,1.045]
[1721244431884,3.61193843,3425.6,3425.1,2.91962]
[1721244431885,0.69273843,3425.6,3425.1,2.91962]
[1721244432176,0.08719071,3425.6,3425.1,5.83917]
[1721244432358,0.08719071,3425.6,3425.2,1.045]
[1721244433087,0.08719071,3425.6,3425.2,3.96453]
[1721244433234,0.69743721,3425.6,3425.2,3.96453]
[1721244434177,0.69743721,3425.6,3424.9,2.91977]
[1721244434178,2.2607,3425.2,3424.9,2.91977]
[1721244434553,0.08720885,3425.1,3424.9,2.91977]
[1721244435154,0.69745535,3425.1,3424.9,2.91977]
[1721244435607,0.69745535,3425.1,3424.9,3.96477]
[1721244435955,0.08720885,3425.1,3424.9,3.96477]
[1721244436382,0.69745535,3425.1,3424.9,3.96477]
[1721244437110,0.6102465,3425.0,3424.9,5.8395]
[1721244437608,0.69744214,3425.0,3424.9,5.8395]
[1721244438175,1.00265429,3425.0,3424.9,6.8845]
[1721244439670,0.08719564,3425.0,3424.9,6.8845]
[1721244440113,1.00265429,3425.0,3424.9,6.8845]
[1721244440414,0.08719564,3425.0,3424.9,6.8845]
[1721244442213,1.30770434,3425.0,3424.9,6.8845]
[1721244445616,2.3015,3424.9,3424.6,2.91997]
[1721244445776,2.3015,3424.9,3424.1,2.92047]
[1721244445982,1.90424253,3425.0,3424.0,2.92054]
[1721244445983,1.22651618,3424.2,3424.0,2.92054]
[1721244446249,1.50171079,3424.1,3424.0,2.92054]
[1721244446444,1.50171079,3424.1,3423.5,1.045]
[1721244446445,1.22577548,3424.1,3423.5,1.045]
[1721244446648,1.22577548,3424.1,3423.7,2.9208]
[1721244446649,0.61288545,3423.8,3423.7,2.9208]
[1721244446958,0.91930588,3423.8,3423.6,2.92089]
[1721244447244,0.6125054,3423.7,3423.6,2.92089]
[1721244447600,1.00623778,3423.7,3423.2,2.92116]
[1721244447806,0.61248047,3423.3,3423.2,2.92116]
[1721244448007,0.91930588,3423.4,3423.3,2.92112]
[1721244448232,0.61196456,3423.5,3423.3,2.92112]
[1721244448601,0.61196456,3423.5,3423.4,2.92107]
[1721244448815,0.61196456,3423.6,3423.4,2.92107]
[1721244449019,0.61196456,3423.7,3423.4,2.92107]
[1721244450047,0.61196456,3423.6,3423.4,2.92107]
[1721244450354,0.61196456,3423.8,3423.4,2.92107]
[1721244450514,1.17971715,3423.8,3423.4,2.92107]
[1721244451859,0.61196456,3423.8,3423.5,2.92097]
[1721244452010,0.61196456,3423.9,3423.5,2.92097]
[1721244452351,0.61196456,3423.9,3423.5,5.43097]
[1721244452645,0.61196456,3423.9,3423.6,2.92089]
[1721244452872,0.61196456,3424.1,3423.7,2.92079]
[1721244453011,0.61196456,3424.0,3423.7,2.92079]
[1721244453416,1.11781915,3424.1,3423.7,2.92079]
[1721244454252,1.11781915,3424.1,3423.7,5.84154]
[1721244454616,1.11781915,3424.1,3423.8,2.92071]
[1721244454814,0.61196456,3424.2,3424.0,5.43049]
[1721244455014,0.61196456,3424.5,3424.0,5.43049]
[1721244455309,0.61196456,3424.6,3424.2,2.92039]
[1721244455514,0.51638459,3424.6,3424.2,2.92039]
[1721244455824,0.61196456,3424.6,3424.3,2.92029]
[1721244456038,0.61196456,3424.6,3424.5,2.51]
[1721244456611,0.61196456,3424.6,3424.5,5.43013]
[1721244456957,0.61196456,3425.2,3425.0,2.9197]
[1721244457261,0.61196456,3425.3,3425.1,2.51]
[1721244458264,0.61196456,3425.4,3425.2,2.91953]
[1721244458464,0.61196456,3425.6,3425.4,2.91934]
[1721244458670,0.61196456,3425.7,3425.5,2.51]
[1721244458870,0.88766915,3425.7,3425.5,2.51]
[1721244459023,0.27570459,3425.7,3425.5,2.51]
[1721244459924,0.27570459,3425.7,3425.5,5.42924]
[1721244460435,0.27570459,3425.7,3425.6,2.91919]
[1721244461239,0.61196456,3425.8,3425.6,2.91919]
[1721244462077,0.61196456,3425.8,3425.5,5.42927]
[1721244462241,0.61196456,3425.8,3425.5,2.91927]
[1721244462766,0.08722532,3425.7,3425.5,2.91927]
[1721244462979,0.61196456,3425.8,3425.5,2.91927]
[1721244463139,0.08723851,3425.6,3425.5,2.91927]
[1721244463345,0.15312704,3425.7,3425.4,2.91933]
[1721244463679,0.08723851,3425.6,3425.4,2.91933]
[1721244464758,0.08723851,3425.6,3425.5,2.91928]
[1721244464941,0.91930588,3426.0,3425.5,2.91928]
[1721244464942,0.61196456,3425.9,3425.5,2.91928]
[1721244465148,0.24036884,3425.8,3425.5,2.91928]
[1721244465547,0.8523334,3425.8,3425.5,2.91928]
[1721244467641,0.24036884,3425.8,3425.7,2.91911]
[1721244468385,0.0872418,3425.8,3425.7,2.91911]
[1721244468684,0.61196456,3426.0,3425.7,2.91911]
[1721244468976,0.61196456,3426.0,3425.8,2.91898]
[1721244469983,0.61196456,3426.0,3425.8,5.83793]
[1721244470543,0.61196456,3426.0,3425.9,2.91894]
[1721244471243,1.18766915,3426.0,3425.9,2.91894]
[1721244471735,0.61196456,3426.0,3425.9,2.91894]
[1721244471938,3.91930588,3426.2,3425.5,2.51]
[1721244471939,0.61196456,3426.2,3425.5,2.51]
[1721244472158,0.61196456,3426.6,3426.2,2.91868]
[1721244472360,0.61196456,3426.7,3426.5,2.91842]
[1721244472595,0.91930588,3426.9,3426.3,2.91854]
[1721244472596,0.61196456,3426.9,3426.8,2.91817]
[1721244472898,1.5256518,3427.4,3427.0,2.91795]
[1721244472899,0.61196456,3427.2,3427.0,2.91795]
[1721244473059,0.15312704,3427.2,3427.0,2.91795]
[1721244473382,0.61196456,3427.4,3427.3,2.91774]
[1721244473699,0.61196456,3427.9,3427.5,2.91757]
[1721244474197,0.61196456,3428.2,3427.7,2.9174]
[1721244475003,0.61196456,3428.2,3427.5,2.91757]
[1721244475356,0.61196456,3428.1,3427.3,2.91773]
[1721244475557,0.44481704,3428.0,3427.4,2.91766]
[1721244475765,0.44481704,3428.0,3427.4,2.91759]
[1721244476002,0.44481704,3428.0,3426.7,2.51]
[1721244476003,0.44481704,3428.0,3427.2,2.91781]
[1721244476994,0.44481704,3428.0,3427.3,2.91774]
[1721244477359,0.44481704,3428.0,3427.2,2.91781]
[1721244477360,0.44481704,3428.0,3427.5,2.91757]
[1721244477558,3.61196456,3428.4,3427.5,2.91757]
[1721244477859,2.9169,3428.3,3427.5,2.91757]
[1721244478076,3.00177862,3428.3,3427.5,2.91757]
[1721244478299,3.00177862,3428.3,3427.4,2.91764]
[1721244479603,2.91712,3428.1,3427.1,2.51]
[1721244479761,0.59188986,3428.0,3427.1,5.42791]
[1721244479963,0.59188986,3428.0,3427.1,5.83575]
[1721244480167,0.08487532,3427.9,3427.1,2.91784]
[1721244480468,0.08487532,3427.9,3427.2,2.91783]
[1721244480689,0.32911183,3427.8,3427.2,2.91783]
[1721244481256,0.08487532,3427.7,3427.1,2.91788]
[1721244483488,0.08487532,3427.7,3427.4,2.91765]
[1721244483685,0.08487532,3427.7,3427.5,2.91752]
[1721244483948,5.3069,3428.4,3427.5,2.91752]
[1721244484261,5.3069,3428.4,3427.5,5.83503]
[1721244484262,0.54569507,3428.3,3427.5,5.83503]
[1721244484421,3.08486379,3428.3,3427.5,5.83503]
[1721244484905,0.08486379,3428.3,3427.5,5.83503]
[1721244485108,3.0,3428.2,3427.5,2.91751]
[1721244485345,0.08486379,3428.3,3427.5,2.91751]
[1721244485559,8.22371,3428.4,3427.5,2.91751]
[1721244485560,0.08498561,3428.1,3427.5,2.91751]
[1721244485735,8.22371,3428.4,3427.5,2.91751]
[1721244486049,5.3069,3428.4,3427.6,2.91748]
[1721244486202,0.08499055,3428.3,3427.6,2.91748]
[1721244488048,0.08499055,3428.3,3427.6,5.83492]
[1721244488845,0.08499055,3428.3,3427.6,2.91744]
[1721244491785,0.08499055,3428.3,3427.5,2.91756]
[1721244491931,0.08499055,3428.3,3427.6,2.91744]
[1721244492833,0.08499055,3428.3,3427.4,5.83519]
[1721244493047,0.08499055,3428.3,3427.4,2.91759]
[1721244493257,3.00189055,3428.3,3427.4,2.91759]
[1721244493456,3.0,3428.2,3427.2,5.42779]
[1721244493687,0.08499055,3428.3,3426.9,2.91808]
[1721244493688,2.91725,3427.9,3426.9,2.91808]
[1721244493830,5.3069,3428.4,3426.9,2.91808]
[1721244493831,3.00212701,3428.1,3427.1,2.91791]
[1721244494030,2.91712,3428.1,3427.1,2.91791]
[1721244494231,3.58556937,3428.0,3427.1,2.91791]
[1721244494681,0.66841937,3428.0,3427.2,2.3668]
[1721244494847,0.66841937,3428.0,3427.3,2.9177]
[1721244495863,0.66841937,3428.0,3427.3,2.91767]
[1721244496068,0.08500537,3428.0,3427.5,2.91752]
[1721244496389,3.0,3428.3,3427.5,2.9175]
[1721244496829,0.08503007,3428.2,3427.5,2.9175]
[1721244497116,0.08503007,3428.2,3427.6,2.91748]
[1721244497471,3.0,3428.4,3427.6,2.91748]
[1721244497676,0.08503007,3428.1,3427.6,2.91748]
[1721244497872,5.91681,3428.4,3427.6,2.91748]
[1721244498078,0.08503007,3428.0,3427.6,2.91748]
[1721244498267,3.0,3428.4,3427.6,2.91748]
[1721244498488,0.08503007,3427.9,3427.6,2.91748]
[1721244498773,3.0,3428.4,3427.6,2.91748]
[1721244498970,5.91681,3428.4,3427.6,2.91748]
[1721244499524,0.08503007,3428.3,3427.6,2.91748]
[1721244500912,0.08503007,3428.3,3427.6,2.51]
[1721244501128,0.08503007,3428.3,3428.1,2.91704]
[1721244501275,0.1500507,3428.5,3428.1,2.91704]
[1721244501475,0.0850564,3428.2,3428.1,2.91704]
[1721244501715,0.1500507,3428.5,3428.1,2.91704]
[1721244502077,0.1500507,3428.5,3428.4,5.21811]
[1721244502431,0.24612484,3429.3,3428.9,2.91632]
[1721244502749,0.24612484,3429.3,3429.0,2.91625]
[1721244503078,0.08229547,3429.2,3429.0,2.91625]
[1721244503276,0.24612484,3429.3,3429.2,2.91613]
[1721244503507,0.24612484,3429.3,3429.2,0.291613]
[1721244503709,0.24612484,3429.3,3429.0,2.91625]
[1721244504105,0.24612484,3429.3,3428.7,2.51]
[1721244504106,0.08245337,3429.2,3428.7,5.42655]
[1721244504485,0.08245337,3429.2,3428.5,2.91672]
[1721244504684,0.08245337,3429.2,3428.3,2.51]
[1721244505097,2.99858337,3429.2,3428.3,2.51]
[1721244505432,2.91631,3429.0,3428.0,2.91714]
[1721244506295,2.99883843,3428.9,3427.9,2.51]
[1721244506518,2.99883843,3428.9,3427.9,5.42721]
[1721244507050,2.99883843,3428.9,3428.0,2.91714]
[1721244507436,0.08244843,3428.9,3428.0,2.91714]
[1721244507632,0.08244843,3428.9,3428.1,0.834444]
[1721244507946,2.91622,3429.1,3428.1,3.751484]
[1721244508150,0.08244843,3428.8,3428.1,3.751484]
[1721244508320,2.91622,3429.1,3428.1,3.751484]
[1721244508520,0.08244843,3428.7,3428.1,3.751484]
[1721244508731,2.91622,3429.1,3428.2,0.9178624]
[1721244508929,0.08244843,3428.6,3428.2,3.8348224]
[1721244509133,0.08244843,3428.6,3428.3,5.42689]
[1721244509345,5.91604,3429.3,3428.3,5.42689]
[1721244509531,3.0,3429.3,3428.3,2.51]
[1721244509726,0.08244843,3429.2,3428.6,2.91658]
[1721244510124,5.91579,3429.6,3428.6,2.91658]
[1721244510327,0.08240403,3429.1,3428.6,2.91658]
[1721244510816,5.91579,3429.6,3428.6,2.91658]
[1721244511039,0.08240567,3429.0,3428.6,2.91658]
[1721244511242,5.91579,3429.6,3428.6,4.02700562]
[1721244511424,5.91579,3429.6,3428.6,2.91658]
[1721244511635,0.08240567,3429.5,3428.6,2.91658]
[1721244514172,0.69437023,3429.5,3428.6,2.91658]
[1721244514640,0.08240567,3429.5,3428.6,2.91658]
[1721244515155,0.69437023,3429.5,3428.6,2.91658]
[1721244515665,3.61026023,3429.5,3428.6,2.91658]
[1721244515840,3.0,3429.4,3428.6,2.91658]
[1721244516244,3.61196456,3429.4,3428.6,2.91658]
[1721244516432,0.08240567,3429.3,3428.6,2.91658]
[1721244516631,0.08240567,3429.3,3428.7,2.91647]
[1721244516833,0.08240567,3429.3,3428.6,2.91658]
[1721244517041,0.08240567,3429.3,3428.7,2.9165]
[1721244517344,0.08240567,3429.3,3429.0,2.91629]
[1721244517345,0.08240567,3429.2,3429.0,2.91629]